Cogmind - Beta 15 @@@ ROGUE MODE // 2025.09.08 @ 15:02:57 Player: shapeshifter Result: Destroyed by KF-ZR3(R) with Subdweller Laser Performance ------------- Evolutions (0) 0 Regions Visited (2) 400 Robots Destroyed (4) 20 Value Destroyed (127) 127 Prototype IDs (0) 0 Alien Tech Used (0) 0 Bonus (0) 0 TOTAL SCORE: 547 Bonus ------- None Cogmind --------- Core Integrity 0/250 Matter 286/300 Energy 72/100 System Corruption 0% Temperature Cool (13) Movement Core (750) Ox14 Location -10/Subcaves Parts ------- > --- POWER (1) -------- (None) > --- PROPULSION (2) --- (None) > --- UTILITY (2) ------ High-capacity Storage Unit > --- WEAPON (2) ------- Subdweller Laser Light Assault Rifle > --- INVENTORY (20) --- Wheel Wheel Subdweller Monowheel Heat Sink Disposable Heat Sink Improved Terrain Scanner Light Assault Rifle Peak State ------------ > --- POWER ------------ (None) > --- PROPULSION ------- Light Treads Light Treads > --- UTILITY ---------- High-capacity Storage Unit Seismic Detector > --- WEAPON ----------- Subdweller Laser Light Assault Rifle > --- INVENTORY -------- Light Ion Engine Wheel Wheel Subdweller Monowheel Heat Sink Disposable Heat Sink Improved Terrain Scanner Light Assault Rifle [Rating: 8] Favorites ----------- Power Light Ion Engine Engine Light Ion Engine Propulsion Light Treads Treads Light Treads Utility Seismic Detector Device Seismic Detector Storage High-capacity Storage Unit Weapon EM Pulse Gun Energy Gun EM Pulse Gun Ballistic Gun Light Assault Rifle Build | -11 -10 -10 ------- Run | Yrd Mat Sub Slots Evolved . | . . . Power . | . . . Propulsion . | . . . Utility . | . . . Weapon . | . . . Parts Attached 11 | 7 1 3 Power 2 | 1 . 1 Engine 2 | 1 . 1 Core . | . . . Reactor . | . . . Propulsion 2 | 2 . . Treads 2 | 2 . . Leg . | . . . Wheel . | . . . Hover . | . . . Flight . | . . . Utility 3 | 2 1 . Device 1 | 1 . . Storage 2 | 1 1 . Processor . | . . . Hackware . | . . . Protection . | . . . Artifact . | . . . Weapon 4 | 2 . 2 Energy Gun 3 | 2 . 1 Energy Cannon . | . . . Ballistic Gun 1 | . . 1 Ballistic Cannon . | . . . Launcher . | . . . Special Weapon . | . . . Impact Weapon . | . . . Slashing Weapon . | . . . Piercing Weapon . | . . . Special Melee Weapon . | . . . Unidentified Prototypes . | . . . Parts Lost 7 | . . 7 Power 2 | . . 2 Propulsion 2 | . . 2 Utility 1 | . . 1 Weapon 2 | . . 2 Highest Loss Streak 6 | . . 6 To Critical Strikes 1 | . . 1 Average Backups 6 | 2 6 8 Power . | . 1 . Propulsion 2 | 1 2 2 Utility 1 | . 1 2 Weapon 1 | . 1 2 Tool/Special . | . . . Unused Backups 7 | . . 7 Power . | . . . Propulsion 3 | . . 3 Utility 3 | . . 3 Weapon 1 | . . 1 Tool/Special . | . . . Average Slot Usage (%) 91 | . 100 86 Engine 7 | . 14 3 Treads 27 | . 28 26 Device 13 | . 14 13 Storage 14 | . 14 14 Energy Gun 26 | . 28 26 Ballistic Gun 1 | . . 1 Peak Build Rating 8 | 7 7 8 Average Rating 6 | 4 7 6 On Entrance 4 | . 7 7 Naked Turns . | . . . Heaviest Build 48 | 13 48 48 Greatest Support 40 | 40 40 40 Greatest Overweight (x) 2 | . 1 2 Average Overweight (x) . | . . 1 Largest Inventory Capacity 20 | 8 20 20 Average Capacity 17 | 7 18 20 Most Carried 10 | 5 7 10 Average Carried 6 | 2 6 8 Final Capacity 20 | 8 20 20 Final Carried 7 | 4 7 7 Class Distribution -------------------- 100% | Mutant Dominant Class ---------------- Mutant | -10/Materials Mutant | -10/Subcaves Resources | -11 -10 -10 ----------- Run | Yrd Mat Sub Matter Collected 275 | 256 . 19 Remotely . | . . . Salvage Created 122 | 18 . 104 Parts 10 | 4 . 6 Haulers Intercepted . | . . . Recyclers Shooed 1 | 1 . . Parts Field Recycled . | . . . Retrieved Matter . | . . . Parts Self-Destructed 7 | . . 7 Prevented . | . . . Kills | -11 -10 -10 ------- Run | Yrd Mat Sub Combat Hostiles Destroyed 3 | . . 3 Guns 3 | . . 3 Classes Destroyed 2 | 1 . 1 Tunneler 1 | 1 . . Subdweller 3 | . . 3 Best Kill Streak 1 | 1 . 1 Combat Bots Only 1 | . . 1 Max Kills in Single Turn 1 | 1 . 1 Gunslinging . | . . . Exploded . | . . . Melee . | . . . Uniques/NPCs Destroyed . | . . . Combat | -11 -10 -10 -------- Run | Yrd Mat Sub Hostile Shots Fired 58 | . . 58 Missed 20 | . . 20 Hits 38 | . . 38 Projectile 38 | . . 38 AOE 2 | . . 2 Critical Strikes 1 | . . 1 Damage Taken 850 | . . 850 Core 270 | . . 270 Absorbed by Shields . | . . . Core Remaining (%) 100 | 100 . . Volleys Fired 20 | 2 . 18 Largest 2 | 2 . 2 Hottest 90 | 90 . 90 Shots Fired 40 | 4 . 36 Gun 40 | 4 . 36 Cannon . | . . . Launcher . | . . . Special . | . . . Kinetic 9 | . . 9 Thermal 15 | 2 . 13 Explosive . | . . . Electromagnetic 16 | 2 . 14 Robot Hit Streak 18 | 1 . 18 Robot Miss Streak 2 | 1 . 2 Penetration Max . | . . . Secondary Targets 2 | . . 2 Max Gunslinging Chain 1 | . . 1 Shots Hit Robots 31 | 2 . 29 Core Hits 12 | 2 . 10 Critical Kills . | . . . Critical Parts Destroyed . | . . . Critical Strikes . | . . . Melee Attacks . | . . . Impact . | . . . Slashing . | . . . Piercing . | . . . Sneak Attacks . | . . . Combat Hostiles . | . . . Follow-up Attacks . | . . . Damage Inflicted 359 | 25 . 334 Guns 359 | 25 . 334 Cannons . | . . . Explosions . | . . . Melee . | . . . Ramming . | . . . Kinetic 51 | . . 51 Thermal 152 | 13 . 139 Explosive . | . . . Electromagnetic 156 | 12 . 144 Impact . | . . . Slashing . | . . . Piercing . | . . . Highest Corruption . | . . . Average Corruption . | . . . Corruption Purged . | . . . Corruption Blocked . | . . . Overload Shots . | . . . Overflow Damage . | . . . Projectiles . | . . . Explosions . | . . . Melee . | . . . Knockbacks . | . . . Impact . | . . . Kinetic . | . . . Secondary . | . . . Self-Inflicted Damage . | . . . Shots . | . . . Rammed . | . . . Targets Rammed . | . . . Kicked . | . . . Crushed . | . . . Highest Temperature 60 | 60 . 30 Average Temperature 24 | 30 . 13 Received Heat Transfer 204 | . . 204 Siege Activations . | . . . Martial Activations . | . . . Shielding Activations . | . . . Robots Disrupted 1 | . . 1 Combat Hostiles 1 | . . 1 Robots Corrupted . | . . . Combat Hostiles . | . . . Parts Fried . | . . . Impact Corruptions . | . . . Robots Melted . | . . . Combat Hostiles . | . . . Parts Melted 2 | . . 2 Heat Transferred 383 | 37 . 346 Parts Sabotaged . | . . . Parts Stolen . | . . . Parts Stripped . | . . . Power Chain Reactions . | . . . Alert | -11 -10 -10 ------- Run | Yrd Mat Sub Maximum Alert Level . | . . . Low Security (%) 100 | 100 100 . Level 1 . | . . . Level 2 . | . . . Level 3 . | . . . Level 4 . | . . . Level 5 . | . . . High Security . | . . . Max Security . | . . . Peak Influence . | . . . Initial . | . . . Average . | . . . Influence Increases 5 | 5 . . Destroy 0b10 Robot/NC 5 | 5 . . Influence Decreases 5 | 5 . . Time Decay 5 | 5 . . Squads Dispatched . | . . . Investigation . | . . . Extermination . | . . . Reinforcement . | . . . Assault . | . . . Garrison . | . . . Intercept . | . . . Searches Triggered . | . . . Construction Impeded . | . . . Haulers Reinforced . | . . . Active Scanning Responses . | . . . Cargo Convoy Interrupts . | . . . Stealth | -11 -10 -10 --------- Run | Yrd Mat Sub Distress Signals . | . . . Communications Jammed . | . . . Distress Signals . | . . . Times Spotted 8 | . . 8 Peak Tracking Total 4 | . . 4 Tactical Retreats . | . . . Traps | -11 -10 -10 ------- Run | Yrd Mat Sub Traps Triggered . | . . . Indirectly . | . . . Trap Hack Attempts . | . . . Triggered . | . . . Disarmed . | . . . Reprogrammed . | . . . Reused . | . . . Traps Extracted . | . . . Installed . | . . . Triggered . | . . . Machines | -11 -10 -10 ---------- Run | Yrd Mat Sub Machines Disabled . | . . . Max in Single Turn . | . . . Machines Repaired . | . . . Machines Dismantled . | . . . Machines Sabotaged . | . . . Overloaded Fab Kills . | . . . Hacking | -11 -10 -10 --------- Run | Yrd Mat Sub Machines Accessed 2 | . 2 . Terminals 2 | . 2 . Fabricators . | . . . Repair Stations . | . . . Recycling Units . | . . . Scanalyzers . | . . . Garrison Access . | . . . Total Hacks 6 | . 6 . Successful 3 | . 3 . Failed 3 | . 3 . Catastrophic 1 | . 1 . Database Lockouts . | . . . Manual 2 | . 2 . Terminals 6 | . 6 . Fabricators . | . . . Repair Stations . | . . . Recycling Units . | . . . Scanalyzers . | . . . Garrison Access . | . . . Terminal Hacks 3 | . 3 . Hauler Manifests 1 | . 1 . Registered Components 1 | . 1 . Zone Layout 1 | . 1 . Fabricator Hacks . | . . . Repair Station Hacks . | . . . Recycling Unit Hacks . | . . . Scanalyzer . | . . . Garrison Access Hacks . | . . . Unauthorized Hacks . | . . . Terminals . | . . . Fabricators . | . . . Repair Stations . | . . . Recycling Units . | . . . Scanalyzers . | . . . Garrison Access . | . . . Data Cores Recovered . | . . . Used . | . . . Hacking Detections 2 | . 2 . Full Trace Events 1 | . 1 . Feedback Events . | . . . Feedback Blocked . | . . . Robot Schematics Acquired . | . . . Robots Built . | . . . Authchips . | . . . Time . | . . . Total Robot Build Rating . | . . . Part Schematics Acquired . | . . . Parts Built . | . . . Authchips . | . . . Time . | . . . Total Part Build Rating . | . . . Parts Repaired . | . . . Time . | . . . Parts Recycled . | . . . Recycled Matter . | . . . Retrieved Matter . | . . . Retrieved Components . | . . . Parts Scanalyzed . | . . . Part Schematics Acquired . | . . . Parts Damaged . | . . . Bothacking | -11 -10 -10 ------------ Run | Yrd Mat Sub Used RIF Installer . | . . . Robots Hacked . | . . . Non-combat . | . . . Combat . | . . . Robot Hacks Applied . | . . . Relay Couplers Released . | . . . Fabnet Peak Effective % . | . . . Robots Rewired . | . . . Allies Hacked . | . . . Hacks Repelled . | . . . Allies | -11 -10 -10 -------- Run | Yrd Mat Sub Total Allies . | . . . Largest Group . | . . . Highest-Rated Group . | . . . Highest-Rated Ally . | . . . Total Orders . | . . . Ally Attacks . | . . . Total Damage . | . . . Kills . | . . . Allies Corrupted . | . . . Allies Melted . | . . . Intel | -11 -10 -10 ------- Run | Yrd Mat Sub Active Infowar (turns) 501 | 45 182 274 Seismic 501 | 45 182 274 Robot Analysis Total . | . . . Derelict Logs Recovered . | . . . Drone Launches . | . . . Drone Recoveries . | . . . Exploration | -11 -10 -10 ------------- Run | Yrd Mat Sub Turns Passed 589 | 116 182 291 Spaces Moved 243 | 68 79 96 Core 14 | 14 . . Treads 229 | 54 79 96 Legs . | . . . Wheels . | . . . Hover . | . . . Flight . | . . . Fastest Speed 50 | 50 160 240 Average Speed 206 | 137 224 240 Slowest Speed 320 | 160 240 320 Overloaded Moves . | . . . Propulsion Burnouts . | . . . Robots Hopped . | . . . Potential Cave-ins . | . . . Cave-ins Triggered . | . . . Exploration Rate (%) 9 | 4 13 10 Regions Visited 2 Branch Regions 1 Pre-discovered Areas . | . . . Known Exits Taken . | . . . Unknown Exits Taken 2 | 1 1 . Scrap Searched . | . . . Spaces Dug . | . . . Terrain Destroyed 1 | . . 1 Melee . | . . . Projectile 1 | . . 1 AOE . | . . . Terrain Rammed . | . . . Walls Destroyed . | . . . Machines Disabled . | . . . Actions | -11 -10 -10 --------- Run | Yrd Mat Sub Total 293 | 87 84 122 Wait 2 | . . 2 Move 241 | 67 78 96 Hop . | . . . Pick Up 18 | 11 4 3 Fast Attach . | . . . Attach 10 | 7 . 3 Detach . | . . . Swap 1 | . 1 . Drop 1 | . 1 . Fire 20 | 2 . 18 Melee . | . . . Ram . | . . . Kick . | . . . Crush . | . . . Escape Stasis . | . . . Rewire . | . . . Trap . | . . . Miscellaneous . | . . . Route ------- -11/Scrapyard -10/Materials (discovered 2 exits: [Min] / [*Sub]) -10/Subcaves History --------- Turn | Location | Event 6 | -11/Scrapyard | Discovered new exit (range 16) 117 | -11/Scrapyard | Entered Materials 253 | -10/Materials | Discovered new exit (range 19) 289 | -10/Materials | Discovered new exit (range 5) 299 | -10/Materials | Entered Subcaves 300 | -10/Subcaves | Build established: Mutant 300 | -10/Subcaves | Approached by a straggling Scientist 547 | -10/Subcaves | A Subdweller sparked back to life 547 | -10/Subcaves | A Subdweller sparked back to life 547 | -10/Subcaves | A Subdweller sparked back to life 554 | -10/Subcaves | Core integrity fell below 50% 580 | -10/Subcaves | Core integrity fell below 20% 590 | -10/Subcaves | Destroyed by KF-ZR3(R) with Subdweller Laser Last Messages --------------- 00549_ 7M-4QP(R) destroyed. 00555_ Med. Laser destroyed. 00557_ Subatomizers dissect the Wheel. 00559_ 9W-RYU(R) destroyed. 00559_ Switching to secondary target: WJ-V7N(R). 00566_ WJ-V7N(R) affixes Scrap Shield Fragment to Scrap Shield. 00568_ Subatomizers dissect the Wheel. 00570_ WJ-V7N(R) affixes Scrap Shield Fragment to Scrap Shield. 00571_ EM Pulse Gun destroyed. 00573_ Seismic Detector destroyed. 00575_ Critical hit (Destroy). 00575_ Lgt. Treads destroyed. 00585_ Sub. Optics melted. 00585_ Sub. Monowheel melted. 00585_ WJ-V7N(R) destroyed. 00585_ Switching to secondary target: B5-U2G(R). 00586_ Lgt. Treads destroyed. 00589_ Lgt. Ion Engine destroyed. Map ----- +----------------------------------------------------+ | | | | | | | | | | | | | ?????????????????????????????????????????????????? | | ?????????????????????????????????????????????????? | | ?????????????????????????????????????????????????? | | ?????????????????????????????????????????????????? | | ?????????????????????????????????????????????????? | | ?????????????????????????????????????????????????? | | ?????????????????????????????????????????????????? | | ?????????????????????????????????????????????????? | | ?????????????????????????????????????????????????? | | ?????????????????????????????????????????????????? | | ?????????????????????????????????????????????????? | | ?????????????????????????????????????????????????? | | ?????????????????????????????????????????????????? | | ?????????????????????#######?????????????????????? | | ?????????????#???##### # ####??????????????????? | | ????????????## ## ; # #??????????????????? | | ???????????## ; ; #??????????????????? | | ???????????# #??????????? ??????? | | ???????????# / ;#?????????? ?????? | | ?????????????????# *%%@* #????????? ??????? | | ?????????????????##"" ! R[ ####?#### #???????? | | ??????????????????####; RR # ## # #???????? | | ?????????????##?##???# ; #???????? | | ????????????? """"??# #### = < # #???????? | | ??????????????" #######" #??????? | | ???????????????""""""## & ??????? | | ????????????????# """" < <## # ??????? | | ????????????????#"""" # < < # #??????? ??????? | | ????????????????# " ### # ##??????????????? | | ???????????????# "" ##?## # ## ######??????????? | | ???????????????##" ##?# ## ## #??????????? | | ????????????????# ??#" ## #??????????? | | ????????????????# #??#" ### #???##??###? | | ????????????????# ???## ?## ### ###?# ### ## | | ????????????????# ????# #?### ### # | | ???????????????? ?????#### #???# ## # | | ????????????????#????????# ?### ## & | | ?????????????????????????# ## ### % | | ?????????????????????????# ###?## | | ????????????????????????## ##?### # | | ????????????????????????# % ###"# # | | ??????????????????????# "" # | | ?????????????????????# ###### | | ?????????????????????? ?????## ## # | +----------------------------------------------------+ Best States ------------- Heat Dissipation 25 Energy Generation 10 Energy Capacity 125 Matter Stores 300 Matter Capacity 300 Sight Range 16 Terrain Scan Density 10 Evasion (%) 50 Recoil Reduction 2 Item Schematics ----------------- None Robot Schematics ------------------ None Fabricated ------------ Nothing Repaired ---------- Nothing Alien Tech Used ----------------- None Achievements -------------- None Challenges ------------ None Game ------ Seed GuidedTransportWings Manual? 0 Play Time 00:06:23 Cumulative 271.6 hours Start 2025.09.08 @ 10:38:08 End 2025.09.08 @ 15:02:57 Sessions 3 Manual Loads 0 Difficulty Rogue Special Mode None Game No. 395 Rogue 395 Adventurer 0 Explorer 0 Win Type - Total 6 Types 4/0/1/1/0/0/0/0/0/0 Lore% 83 Gallery% 79 Achievement% 62 Wizard Run 0 Options --------- Layout 1 ASCII 0 Keyboard 0 Movement Mouse Keybinds 0 Fullscreen 1 Font 24/Smallcaps Map View 50x40 Zoom Use 0% Tactical HUD 1 Map Filters NONE Filters NONE Steam 1 RUN: 1d2b5a3a-2318-4831-9f83-650d2047dd14